Workbook

Sheet Neutral
A5: Unterhaltsperimeter der Flurgenossenschaft Neutral in der Gemeinde xxx
A7: Nr. | B7: Grundeigentümer | C7: GB Nr. | D7: G r u n d b u c h d a t e n | K7: Nr. | U7: Kostenverteiler | X7: B e m e r k u n g e n
D8: Wiese | E8: Wald | F8: Wohnungen | H8: Klein- | J8: ange- | X8: Länge: | Y8: xxx m
D9: Weide | H9: Gewerbe | J9: rechnete | L9: Wiese | N9: W a l d | P9: Wohnung | R9: Gewerbe, | T9: Subtotal | V9: Einzel- | W9: Ihr
J10: Länge | L10: Weide | R10: Diverses | T10: F1 | U10: Total | V10: anteil | W10: Anteil
G11: Anzahl | I11: Anzahl
D12: (ha) | E12: (ha) | F12: Anzahl | G12: Punkte | H12: Anzahl | I12: Punkte | J12: (m) | L12: p | M12: m | N12: p | O12: m | P12: p | Q12: m | R12: p | S12: m | T12: Punkte | U12: Punkte | V12: % | W12: %
A15: 1 | D15: 0.15 | F15: 1 | G15: 5 | J15: 134 | K15: =A15 -> 1 | L15: =D15 -> 0.15 | M15: =IF((D15)>0,J15,) -> 134 | N15: =E15*0.5*3/3 -> 0 | O15: =IF((E15)>0,J15,) -> 0 | P15: =G15 -> 5 | Q15: =IF((F15)>0,J15,) -> 134 | R15: =I15 -> 0 | S15: =IF((H15)>0,J15,) -> 0 | T15: =L15*M15+N15*O15+P15*Q15+R15*S15 -> 690.1 | U15: =T15 -> 690.1 | V15: =U15/$U$28% -> 8.510003354
D16: 2.95 | E16: 0.99 | J16: 134 | K16: 0 | L16: =D16 -> 2.95 | M16: =IF((D16)>0,J16,) -> 134 | N16: =E16*0.5*2/3 -> 0.33 | O16: 134 | P16: 0 | R16: 0 | S16: 0 | T16: =L16*M16+N16*O16+P16*Q16+R16*S16 -> 439.52 | U16: =T16 -> 439.52 | V16: 5.419963301 | X16: 1/3 Brennholzanteil
D17: 0.14 | J17: 134 | L17: 0.14 | M17: 134 | T17: 18.76 | U17: 18.76 | V17: 0.231339897 | W17: =SUM(V15:V17) -> 14.16130655
L18: 0 | M18: 0 | T18: 0 | U18: 0
A19: 2 | D19: 0.1 | F19: 2 | G19: 9 | J19: 180 | K19: 2 | L19: 0.1 | M19: 180 | N19: =E19*0.5*3/3 -> 0 | O19: 0 | P19: 9 | Q19: =IF((F19)>0,J19,) -> 180 | R19: 0 | S19: 0 | T19: 1638 | U19: 1638 | V19: 20.19908056 | W19: =V19 -> 20.19908056
L20: 0 | M20: 0 | T20: 0 | U20: 0
A21: 3 | D21: 0.11 | F21: 1 | G21: 5 | J21: 160 | K21: 3 | L21: 0.11 | M21: 160 | N21: =E21*0.5*3/3 -> 0 | O21: 0 | P21: 5 | Q21: =IF((F21)>0,J21,) -> 160 | R21: 0 | S21: 0 | T21: 817.6 | U21: 817.6 | V21: 10.08227611 | W21: =V21 -> 10.08227611
L22: 0 | M22: 0 | T22: 0 | U22: 0
A23: 4 | D23: 2.69 | E23: 0.22 | F23: 1 | G23: 5 | H23: 1 | I23: 5 | J23: 270 | K23: 4 | L23: 2.69 | M23: 270 | N23: =E23*0.5*2/3 -> 0.07333333333 | O23: 270 | P23: 5 | Q23: =IF((F23)>0,J23,) -> 270 | R23: 5 | S23: 270 | T23: 3446.1 | U23: 3446.1 | V23: 42.49575795 | W23: =V23 -> 42.49575795 | X23: 1/3 Brennholzanteil
L24: 0 | M24: 0 | T24: 0 | U24: 0
A25: 5 | D25: 1.56 | F25: 1 | G25: 5 | J25: 160 | K25: 5 | L25: 1.56 | M25: 160 | N25: =E25*0.5*3/3 -> 0 | O25: 0 | P25: 5 | Q25: =IF((F25)>0,J25,) -> 160 | R25: 0 | S25: 0 | T25: 1049.6 | U25: 1049.6 | V25: 12.94319594
D26: 0.06 | J26: 160 | K26: 0 | L26: 0.06 | M26: 160 | N26: =E26*0.5*3/3 -> 0 | O26: 0 | P26: 0 | Q26: =IF((F26)>0,J26,) -> 0 | R26: 0 | S26: 0 | T26: 9.6 | U26: 9.6 | V26: 0.1183828897 | W26: =SUM(V25:V26) -> 13.06157883
A28: Total | D28: =SUM(D15:D26) -> 7.76 | E28: 1.21 | F28: 6 | G28: 29 | H28: 1 | I28: 5 | J28: =SUM(J15:J26) -> 1332 | L28: =SUM(L15:L27) -> 7.76 | M28: =SUM(M15:M27) -> 1332 | P28: =SUM(P15:P27) -> 29 | Q28: =SUM(Q15:Q27) -> 904 | R28: =SUM(R15:R26) -> 5 | S28: =SUM(S15:S26) -> 270 | T28: =SUM(T15:T26) -> 8109.28 | U28: =SUM(U15:U26) -> 8109.28 | V28: =SUM(V15:V26) -> 100 | W28: =SUM(W16:W26) -> 100
B30: Amt für Landwirtschaft, 9. Januar 2024
B32: Erläuterungen:
B33: F1 = p x m + p x m + p x m + p x m
